bitfinex/quotes_SOLUSD_20250924
["timestamp","ask_amount","ask_price","bid_price","bid_amount"]
[1758731929878,0.69,214.41,214.37,41.06472943]
[1758731930385,2.84137825,214.43,214.37,43.93610768]
[1758731930776,2.86137825,214.42,214.37,36.4]
[1758731930972,0.71,214.41,214.37,36.4]
[1758731931166,2.15137825,214.42,214.37,41.72478149]
[1758731931487,0.71,214.41,214.37,36.38]
[1758731931685,2.15137825,214.42,214.37,36.38]
[1758731931885,0.71,214.4,214.37,36.38]
[1758731932392,0.71,214.42,214.38,4.66461423]
[1758731932688,0.71,214.42,214.38,5.32461423]
[1758731933478,26.0,214.43,214.38,4.66461423]
[1758731933671,26.0,214.43,214.39,5.32436059]
[1758731933873,0.71,214.42,214.37,41.04464269]
[1758731934209,2.86137825,214.41,214.37,36.34]
[1758731934372,30.66357933,214.43,214.37,36.34]
[1758731934373,0.71,214.4,214.37,36.34]
[1758731934692,0.71,214.39,214.37,36.34]
[1758731935002,0.71,214.38,214.35,36.34]
[1758731935404,2.86137825,214.4,214.35,37.0]
[1758731935696,6.81564942,214.4,214.35,41.66525182]
[1758731935870,7.52564942,214.4,214.35,41.66525182]
[1758731936069,7.52564942,214.4,214.35,37.0]
[1758731936070,0.71,214.39,214.35,37.0]
[1758731936794,134.6,214.37,214.35,41.66519607]
[1758731937284,134.6,214.37,214.36,2.81137825]
[1758731937488,26.0,214.43,214.36,2.81137825]
[1758731937693,26.0,214.43,214.37,7.47621008]
[1758731938008,0.71,214.42,214.37,5.32483183]
[1758731938178,6.81490886,214.43,214.37,5.32483183]
[1758731938383,0.71,214.42,214.37,5.32483183]
[1758731938583,0.71,214.42,214.38,0.66]
[1758731938786,0.71,214.41,214.37,4.66483183]
[1758731939378,0.71,214.41,214.37,5.32483183]
[1758731939579,8.72867757,214.43,214.37,5.32483183]
[1758731940075,0.7,214.42,214.37,5.32483183]
[1758731940279,0.7,214.42,214.38,4.02514696]
[1758731940582,0.7,214.42,214.37,4.66483183]
[1758731940583,0.7,214.42,214.37,8.01997879]
[1758731940781,0.7,214.42,214.38,0.67]
[1758731941297,26.84216157,214.44,214.39,0.67]
[1758731941494,0.7,214.43,214.39,0.67]
[1758731941697,0.1,214.45,214.41,3.35514696]
[1758731941908,0.1,214.45,214.42,3.35514696]
[1758731942196,0.1,214.45,214.42,4.02514696]
[1758731942371,0.1,214.45,214.43,0.67]
[1758731942973,0.1,214.45,214.44,0.67]
[1758731943202,0.1,214.45,214.44,5.33330908]
[1758731943398,0.1,214.45,214.44,8.68845604]
[1758731944683,0.1,214.45,214.44,5.33330908]
[1758731944897,0.1,214.45,214.43,8.01863405]
[1758731945098,0.1,214.45,214.42,4.02514696]
[1758731945302,0.7,214.44,214.41,36.34]
[1758731946405,0.1,214.45,214.42,0.67]
[1758731946576,0.1,214.45,214.41,36.34]
[1758731946782,0.8,214.45,214.41,37.01]
[1758731946980,0.1,214.45,214.41,37.01]
[1758731947182,0.1,214.45,214.42,5.33374405]
[1758731947377,0.1,214.45,214.44,3.35514696]
[1758731947782,0.1,214.45,214.44,0.67]
[1758731948007,0.1,214.45,214.43,36.34]
[1758731948518,0.1,214.45,214.41,4.66388766]
[1758731948699,0.7,214.44,214.38,0.67]
[1758731949185,8.7184785,214.44,214.39,36.34]
[1758731949387,0.7,214.43,214.37,8.68996542]
[1758731949579,4.05514696,214.42,214.38,36.34]
[1758731949778,0.7,214.42,214.38,36.34]
[1758731950085,4.05514696,214.44,214.39,0.67]
[1758731950299,0.7,214.44,214.39,0.67]
[1758731950691,4.05514696,214.43,214.38,36.34]
[1758731951005,4.05514696,214.42,214.38,36.34]
[1758731951181,8.71912661,214.41,214.36,37.01]
[1758731951380,8.71912661,214.41,214.36,41.00501063]
[1758731951603,11.65827271,214.44,214.36,41.00501063]
[1758731951604,8.01892828,214.42,214.37,0.67]
[1758731951899,3.35514696,214.42,214.37,0.67]
[1758731952204,4.05514696,214.42,214.37,0.67]
[1758731952602,8.71890331,214.42,214.37,0.67]
[1758731953204,8.71890331,214.42,214.37,5.33465378]
[1758731953406,0.7,214.42,214.38,0.67]
[1758731953577,8.71890458,214.42,214.37,4.66465378]
[1758731953778,8.71890458,214.42,214.37,5.33465378]
[1758731953996,3.35514696,214.42,214.37,5.33465378]
[1758731954201,4.05514696,214.42,214.37,5.33465378]
[1758731955109,8.71898985,214.42,214.37,5.33465378]
[1758731955325,0.7,214.41,214.37,5.33465378]
[1758731955690,26.8,214.45,214.38,4.02514696]
[1758731956011,0.14216157,214.44,214.39,4.02514696]
[1758731956196,0.84216157,214.44,214.39,4.02514696]
[1758731956394,4.19730853,214.44,214.39,0.67]
[1758731956588,0.7,214.43,214.39,0.67]
[1758731956901,0.7,214.42,214.37,8.01980074]
[1758731957103,0.7,214.41,214.37,41.65465378]
[1758731957907,8.01916628,214.41,214.36,4.66502064]
[1758731958110,0.7,214.4,214.34,8.0204339]
[1758731958306,4.19730853,214.39,214.32,0.67]
[1758731958498,4.19730853,214.39,214.33,3.35514696]
[1758731958699,0.7,214.39,214.34,4.02514696]
[1758731958897,26.0,214.4,214.35,4.02514696]
[1758731959197,0.7,214.4,214.35,3.35514696]
[1758731959405,8.01890423,214.42,214.36,0.67]
[1758731959605,0.14216157,214.42,214.38,4.66461423]
[1758731959792,0.84216157,214.42,214.38,5.33461423]
[1758731959989,0.7,214.41,214.36,44.37998013]
[1758731960307,0.14216157,214.42,214.37,4.02514696]
[1758731960529,0.14216157,214.42,214.38,0.67]
[1758731960716,0.84216157,214.42,214.38,0.67]
[1758731960914,0.84216157,214.42,214.36,56.72260375]
[1758731961314,0.84216157,214.42,214.37,3.35514696]
[1758731961500,0.84216157,214.42,214.37,4.03514696]
[1758731961701,0.71,214.41,214.37,8.69996584]
[1758731962409,26.0,214.44,214.38,0.68]
[1758731962608,5.4732497,214.45,214.39,3.35514696]
[1758731962609,26.0,214.43,214.39,3.35514696]
[1758731962809,0.1,214.45,214.41,3.35514696]
[1758731963016,0.1,214.45,214.44,3.35514696]
[1758731963328,0.1,214.45,214.44,4.03514696]
[1758731963820,0.1,214.45,214.44,8.69845604]
[1758731965521,0.1,214.45,214.44,5.34330908]
[1758731965690,0.1,214.45,214.44,4.66330908]
[1758731965896,0.1,214.45,214.44,5.34330908]
[1758731966094,0.1,214.45,214.44,8.69845604]
[1758731968111,0.1,214.45,214.44,45.01845604]
[1758731975512,0.1,214.47,214.44,70.27232276]
[1758731975710,0.1,214.47,214.46,3.35514696]
[1758731976032,0.1,214.47,214.46,39.63514696]
[1758731976235,0.1,214.47,214.46,40.31514696]
[1758731976806,0.1,214.47,214.46,44.97802115]
[1758731977013,0.1,214.47,214.46,58.57361516]
[1758731977407,0.1,214.49,214.48,16.95074097]
[1758731977606,0.1,214.49,214.48,53.23074097]
[1758731977816,0.1,214.49,214.48,53.91074097]
[1758731978214,0.1,214.49,214.48,4.03514696]
[1758731978417,0.1,214.49,214.48,40.31514696]
[1758731978812,0.1,214.49,214.48,5.34243938]
[1758731979022,0.1,214.49,214.48,44.97758634]
[1758731982006,0.1,214.49,214.48,58.57318035]
[1758731984618,0.1,214.51,214.49,39.59559401]
[1758731984817,1e-08,214.51,214.5,56.58588793]
[1758731985026,1e-08,214.51,214.5,57.26588793]
[1758731985608,1e-08,214.51,214.5,61.92789259]
[1758731988129,0.1,214.55,214.54,3.35514696]
[1758731988437,0.1,214.55,214.54,39.63514696]
[1758731988730,0.1,214.55,214.54,40.31514696]
[1758731990237,0.1,214.55,214.54,44.97628241]
[1758731991147,0.1,214.55,214.54,41.62113545]
[1758731991442,0.1,214.55,214.54,84.54187642]
[1758731991617,0.1,214.55,214.54,83.87187642]
[1758731991814,0.1,214.55,214.54,84.54187642]
[1758731993532,0.1,214.57,214.55,13.59559401]
[1758731993733,0.78,214.64,214.57,13.59559401]
[1758731993925,0.78,214.64,214.63,3.35514696]
[1758731994123,0.1,214.64,214.62,3.35514696]
[1758731994419,0.1,214.64,214.63,36.3]
[1758731994945,0.1,214.64,214.63,39.65514696]
[1758731995238,0.78,214.64,214.63,36.3]
[1758731995652,0.78,214.64,214.63,40.95918091]
[1758732000356,0.76,214.64,214.63,40.95918091]
[1758732001149,0.1,214.64,214.63,40.95918091]
[1758732001822,0.76,214.64,214.63,43.10136615]
[1758732002156,0.76,214.64,214.63,40.95918091]
[1758732002747,0.1,214.64,214.63,40.95918091]
[1758732002926,0.76,214.64,214.63,40.95918091]
[1758732003127,0.76,214.64,214.61,11.64881056]
[1758732003128,0.76,214.64,214.61,4.65943732]
[1758732003437,0.66,214.63,214.62,36.26]
[1758732004252,0.66,214.63,214.62,40.919398]
[1758732004449,0.1,214.64,214.62,40.919398]
[1758732004658,0.76,214.64,214.62,40.919398]
[1758732004832,0.66,214.63,214.62,40.919398]
[1758732005576,0.76,214.64,214.62,40.919398]
[1758732005734,0.66,214.63,214.62,40.919398]
[1758732006335,6.66050108,214.67,214.62,40.919398]
[1758732006659,2.14218524,214.66,214.62,40.919398]
[1758732006968,2.14218524,214.64,214.58,2.14218524]
[1758732007256,134.6,214.66,214.59,36.26]
[1758732007469,134.6,214.66,214.59,38.40218524]
[1758732007837,134.6,214.66,214.59,2.14218524]
[1758732008034,134.6,214.66,214.6,52.56941285]
[1758732008256,0.66,214.65,214.61,2.14218524]
[1758732008459,134.6,214.66,214.62,36.92]
[1758732008759,0.1,214.71,214.67,13.59559401]
[1758732008934,0.1,214.71,214.7,2.14218524]
[1758732009131,0.1,214.71,214.7,36.32]
[1758732010153,0.1,214.71,214.7,40.97766185]
[1758732010356,0.1,214.71,214.7,43.77984709]
[1758732010864,0.1,214.71,214.7,40.97766185]
[1758732011351,0.1,214.71,214.7,36.3]
[1758732011539,0.76,214.71,214.61,13.79965988]
[1758732011740,0.76,214.71,214.64,28.14218524]
[1758732011741,0.66,214.7,214.64,28.14218524]
[1758732011943,0.66,214.69,214.65,36.32]
[1758732012144,0.66,214.68,214.65,40.9785396]
[1758732013164,2.80218524,214.67,214.6,6.80201748]
[1758732013341,2.14218524,214.66,214.6,4.65983224]
[1758732013542,2.80218524,214.65,214.59,4.66002543]
[1758732013742,2.80218524,214.64,214.58,4.66025981]
[1758732013958,2.80218524,214.64,214.6,36.34]
[1758732014161,0.66,214.64,214.6,36.34]
[1758732014856,0.66,214.64,214.6,40.99977915]
[1758732015256,0.1,214.71,214.61,13.59559401]
[1758732015451,2.14218524,214.68,214.62,0.66]
[1758732015654,2.80218524,214.69,214.63,36.36]
[1758732015964,2.14218524,214.68,214.64,36.38]
[1758732016173,0.66,214.68,214.65,4.65874679]
[1758732016349,2.80218524,214.68,214.65,4.65874679]
[1758732016551,2.14218524,214.7,214.65,5.31874679]
[1758732016963,2.14218524,214.69,214.65,4.65874679]
[1758732017365,2.14218524,214.68,214.61,2.14218524]
[1758732017548,2.14218524,214.67,214.62,36.38]
[1758732017947,37.6413422,214.76,214.62,36.38]
[1758732018169,2.14218524,214.68,214.62,37.04]
[1758732018770,2.14218524,214.68,214.63,4.65918091]
[1758732019374,2.14218524,214.68,214.63,5.31918091]
[1758732019951,2.14218524,214.68,214.63,4.65918091]
[1758732021569,2.14218524,214.69,214.63,17.01713319]
[1758732022353,0.14216157,214.72,214.63,17.01713319]
[1758732022571,2.14218524,214.69,214.63,17.01713319]
[1758732022756,134.6,214.68,214.63,17.01713319]
[1758732022963,2.14218524,214.67,214.63,4.65918091]
[1758732023578,2.14218524,214.65,214.6,11.64917463]
[1758732023780,2.14218524,214.65,214.62,36.34]
[1758732024373,134.6,214.66,214.62,36.36]
[1758732025181,134.6,214.66,214.62,41.01934869]
[1758732026280,134.6,214.66,214.62,4.65934869]
[1758732026466,2.14218524,214.65,214.62,40.99934869]
[1758732026662,2.14218524,214.65,214.62,4.65934869]
[1758732026974,2.14218524,214.65,214.62,40.97934869]
[1758732027981,2.14218524,214.65,214.62,36.32]
[1758732028556,2.14218524,214.64,214.62,36.32]
[1758732028859,139.25854693,214.66,214.56,28.09907615]
[1758732028860,2.14218524,214.63,214.56,28.09907615]
[1758732029175,2.14218524,214.61,214.57,36.32]
[1758732029679,2.14218524,214.61,214.58,0.71]
[1758732030178,2.14218524,214.61,214.58,5.37025519]
[1758732030489,2.14218524,214.6,214.59,36.3]
[1758732031153,2.14218524,214.61,214.55,2.14218524]
[1758732031354,2.14218524,214.61,214.56,36.3]
[1758732031591,2.14218524,214.61,214.56,37.01]
[1758732031881,2.14218524,214.6,214.56,37.01]
[1758732032085,2.14218524,214.6,214.56,41.67057194]
[1758732032255,2.14218524,214.61,214.56,41.67057194]
[1758732032461,2.14218524,214.61,214.57,0.71]
[1758732033582,2.14218524,214.61,214.57,5.37027104]
[1758732034495,4.65921335,214.63,214.57,5.37027104]
[1758732034688,2.14218524,214.61,214.57,5.37027104]
[1758732035683,2.14218524,214.64,214.58,0.71]
[1758732035882,2.14218524,214.64,214.59,36.28]
[1758732036086,2.14218524,214.64,214.59,36.99]
[1758732036386,139.25853038,214.66,214.6,0.71]
[1758732036581,2.14218524,214.64,214.6,0.71]
[1758732036779,2.14218524,214.64,214.6,5.36969739]
[1758732037281,2.14218524,214.63,214.6,5.36969739]
[1758732037583,2.14218524,214.63,214.6,4.65969739]
[1758732037882,2.14218524,214.62,214.59,36.28]
[1758732040790,2.14218524,214.59,214.54,36.97]
[1758732040968,2.14218524,214.59,214.55,5.3709182]
[1758732041285,4.65900122,214.64,214.56,0.71]
[1758732041484,2.14218524,214.6,214.56,0.71]
[1758732042081,4.65900122,214.64,214.57,0.71]
[1758732042286,2.14218524,214.6,214.57,0.71]
[1758732042483,2.14218524,214.6,214.57,5.37030895]
[1758732042676,2.14218524,214.6,214.57,4.66030895]
[1758732042987,2.14218524,214.59,214.58,0.71]
[1758732044498,2.14218524,214.59,214.55,11.6522955]
[1758732044672,2.14218524,214.58,214.55,36.26]
[1758732045078,2.14218524,214.57,214.55,36.26]
[1758732045270,2.14218524,214.57,214.56,36.26]
[1758732045477,2.14218524,214.57,214.52,4.66155946]
[1758732045671,0.22,214.6,214.53,36.97]
[1758732045672,2.14218524,214.55,214.53,36.97]
[1758732046066,136.74218524,214.56,214.53,36.26]
[1758732046270,2.14218524,214.55,214.53,36.26]
[1758732046672,2.14218524,214.55,214.53,41.63134832]
[1758732047065,2.14218524,214.54,214.53,36.26]
[1758732047473,134.6,214.56,214.53,36.26]
[1758732047883,134.6,214.55,214.51,0.71]
[1758732048084,134.6,214.55,214.52,36.26]
[1758732048468,134.6,214.55,214.51,0.71]
[1758732048785,134.6,214.55,214.52,0.71]
[1758732049990,134.6,214.55,214.52,5.3715157]
[1758732050389,134.6,214.55,214.52,0.71]
[1758732050624,2.14218524,214.53,214.48,0.71]
[1758732050881,2.14218524,214.51,214.49,36.98]
[1758732051190,2.14218524,214.5,214.49,36.98]
[1758732051387,2.14218524,214.5,214.44,52.11777925]
[1758732051388,2.14218524,214.5,214.46,0.72]
[1758732051578,2.14218524,214.49,214.47,36.98]
[1758732052376,2.14218524,214.49,214.48,0.72]
[1758732053780,2.14218524,214.49,214.47,40.92261964]
[1758732053971,4.88136565,214.53,214.48,0.72]
[1758732054171,4.88136565,214.53,214.47,36.26]
[1758732054172,2.14218524,214.49,214.47,36.26]
[1758732054494,2.14218524,214.48,214.47,36.26]
[1758732055178,2.14218524,214.48,214.47,36.98]
[1758732055377,4.8817847,214.52,214.47,0.72]
[1758732055686,2.14218524,214.48,214.47,41.66265678]
[1758732056074,134.82,214.54,214.47,41.66265678]
[1758732056490,2.14218524,214.49,214.48,0.72]
[1758732057689,2.14218524,214.49,214.48,5.38243938]
[1758732058402,0.22,214.57,214.48,19.18072309]
[1758732058577,2.14218524,214.55,214.49,2.86218524]
[1758732058780,2.14218524,214.55,214.5,37.0]
[1758732059098,2.14218524,214.54,214.51,0.72]
[1758732059697,2.14218524,214.54,214.52,4.66157001]
[1758732060010,2.14218524,214.54,214.52,41.63157001]
[1758732060216,2.14218524,214.54,214.53,0.69]
[1758732060583,2.14218524,214.55,214.53,0.69]
[1758732060783,2.14218524,214.54,214.52,40.94157001]
[1758732061199,2.14218524,214.54,214.52,41.63157001]
[1758732061512,2.14218524,214.55,214.53,0.69]
[1758732061804,2.14218524,214.55,214.53,5.35127015]
[1758732062007,2.14218524,214.54,214.53,5.35127015]
[1758732062599,3.3509697,214.54,214.53,5.35127015]
[1758732062975,3.3509697,214.54,214.52,36.28]
[1758732063299,3.3509697,214.53,214.52,36.28]
[1758732063502,3.3509697,214.53,214.52,36.97]
[1758732063697,3.3509697,214.53,214.52,0.69]
[1758732063883,3.3509697,214.53,214.51,36.28]
[1758732064087,137.9509697,214.52,214.49,36.28]
[1758732064387,3.3509697,214.51,214.49,36.28]
[1758732064595,137.9509697,214.52,214.49,36.28]
[1758732065101,134.6,214.52,214.5,0.69]
[1758732065299,134.6,214.52,214.51,0.69]
[1758732066107,134.6,214.52,214.51,5.35178732]
[1758732067884,137.9509697,214.52,214.49,40.94213624]
[1758732068100,137.9509697,214.52,214.51,4.66178732]
[1758732068596,137.9509697,214.52,214.5,5.35197496]
[1758732068811,137.9509697,214.52,214.49,36.28]
[1758732068812,3.3509697,214.51,214.49,40.94220782]
[1758732068975,3.3509697,214.51,214.49,41.63220782]
[1758732069297,134.6,214.52,214.49,41.63220782]
[1758732069489,137.9509697,214.52,214.49,41.63220782]
[1758732069691,137.9509697,214.52,214.5,0.69]
[1758732070411,134.6,214.52,214.5,5.35186375]
[1758732070604,137.9509697,214.52,214.5,5.35186375]
[1758732070896,137.9509697,214.52,214.5,4.66186375]
[1758732071298,137.9509697,214.52,214.5,5.35186375]
[1758732071892,137.9509697,214.52,214.49,40.94217424]
[1758732072095,3.3509697,214.51,214.49,40.94217424]
[1758732072292,3.3509697,214.51,214.49,41.63217424]
[1758732072806,3.3509697,214.5,214.49,36.28]
[1758732074078,3.3509697,214.5,214.47,5.35263647]
[1758732074283,3.3509697,214.49,214.48,36.28]
[1758732074493,3.3509697,214.49,214.48,40.94243938]
[1758732074699,3.3509697,214.49,214.48,41.63243938]
[1758732075911,3.3509697,214.49,214.44,0.69]
[1758732076088,3.3509697,214.45,214.44,0.69]
[1758732076289,3.3509697,214.46,214.44,36.97]
[1758732076599,3.3509697,214.46,214.44,41.63326318]
[1758732076991,3.3509697,214.46,214.44,40.94326318]
[1758732077191,3.3509697,214.46,214.45,0.69]
[1758732077999,3.3509697,214.47,214.45,0.69]
[1758732078202,3.3509697,214.49,214.46,36.97]
[1758732078508,11.65206307,214.56,214.48,4.66243938]
[1758732078509,3.3509697,214.52,214.48,4.66243938]
[1758732078693,3.3509697,214.52,214.49,36.97]
[1758732078907,3.3509697,214.52,214.5,0.69]
[1758732079809,29.3509697,214.54,214.51,0.69]
[1758732079994,29.3509697,214.54,214.52,0.69]
[1758732080197,3.3509697,214.55,214.53,0.69]
[1758732080390,3.3509697,214.56,214.54,5.35108904]
[1758732080808,3.3509697,214.56,214.54,5.32108904]
[1758732081100,3.3509697,214.55,214.53,36.28]
[1758732081302,3.3509697,214.55,214.53,36.94]
[1758732081606,3.3509697,214.55,214.54,0.66]
[1758732083209,3.3509697,214.55,214.53,40.94133332]
[1758732083398,30.66033569,214.58,214.54,0.66]
[1758732083602,3.3509697,214.55,214.54,0.66]
[1758732084730,3.3509697,214.55,214.54,4.66113545]
[1758732085010,3.3509697,214.57,214.54,4.66113545]
[1758732085208,0.22,214.63,214.55,36.28]
[1758732085408,3.3509697,214.59,214.56,0.66]
[1758732085593,3.3509697,214.59,214.56,4.66070096]
[1758732085910,3.3509697,214.59,214.57,0.66]
[1758732086318,3.3509697,214.59,214.58,0.66]
[1758732086816,3.3509697,214.59,214.58,5.32026656]
[1758732087788,26.22,214.63,214.58,5.32026656]
[1758732087993,3.3509697,214.59,214.58,5.32026656]
[1758732089194,3.3509697,214.59,214.58,0.66]
[1758732089393,3.3509697,214.59,214.56,4.66051442]
[1758732089597,3.3509697,214.58,214.57,0.66]
[1758732090301,3.3509697,214.58,214.56,36.26]
[1758732090627,3.3509697,214.57,214.56,36.92]
[1758732091199,4.65948413,214.63,214.56,41.58070096]
[1758732091516,3.3509697,214.59,214.57,0.66]
[1758732092521,3.3509697,214.59,214.56,52.57245338]
[1758732092827,134.6,214.62,214.58,0.66]
[1758732092999,134.6,214.62,214.59,0.66]
[1758732093327,134.6,214.62,214.59,5.31996882]
[1758732093907,3.3509697,214.6,214.59,5.31996882]
[1758732095027,3.3509697,214.6,214.57,5.3202876]
[1758732095210,3.3509697,214.58,214.57,4.6602876]
[1758732095407,26.0,214.64,214.57,4.6602876]
[1758732095614,3.3509697,214.62,214.57,4.6602876]
[1758732095814,3.3509697,214.62,214.58,0.66]
[1758732096018,3.3509697,214.62,214.59,0.66]
[1758732096834,3.3509697,214.62,214.6,0.66]
[1758732097035,3.3509697,214.62,214.58,5.32026656]
[1758732097232,3.3509697,214.62,214.59,0.66]
[1758732097434,0.14216157,214.66,214.6,0.66]
[1758732097623,3.3509697,214.65,214.6,0.66]
[1758732098128,3.3509697,214.64,214.6,0.66]
[1758732098302,0.14216157,214.68,214.6,0.66]
[1758732098501,3.3509697,214.64,214.6,0.66]
[1758732098717,3.3509697,214.64,214.61,4.65961511]
[1758732099108,3.3509697,214.64,214.62,0.66]
[1758732099424,3.3509697,214.64,214.6,0.66]
[1758732099620,134.6,214.63,214.61,0.66]
[1758732100330,134.6,214.63,214.62,0.66]
[1758732100809,134.6,214.63,214.6,5.31976582]
[1758732101019,134.6,214.63,214.61,0.66]
[1758732101216,134.6,214.63,214.62,0.66]
[1758732102714,134.6,214.63,214.6,5.31976582]
[1758732102908,134.6,214.62,214.61,0.66]
[1758732105542,138.1709697,214.62,214.54,14.01116222]
[1758732105827,3.3509697,214.59,214.55,36.9]
[1758732106006,134.6,214.61,214.56,0.66]
[1758732106211,3.3509697,214.6,214.57,0.66]
[1758732106407,3.3509697,214.6,214.58,0.66]
[1758732106727,134.6,214.61,214.58,0.66]
[1758732106928,3.3509697,214.6,214.58,0.66]
[1758732107134,134.6,214.61,214.58,0.66]
[1758732107428,134.6,214.61,214.59,0.66]
[1758732107632,134.6,214.61,214.6,0.66]
[1758732108837,134.6,214.61,214.6,5.31983224]
[1758732109225,134.6,214.61,214.6,0.66]
[1758732109418,134.6,214.61,214.58,5.32022768]
[1758732109622,134.6,214.61,214.59,0.66]
[1758732111040,134.6,214.61,214.59,0.72]
[1758732111538,134.6,214.61,214.57,16.31169314]
[1758732111735,134.6,214.61,214.6,0.72]
[1758732111936,134.6,214.61,214.6,40.3109697]
[1758732112825,134.6,214.61,214.6,41.61983224]
[1758732113338,134.6,214.61,214.6,44.97080194]
[1758732120127,134.6,214.61,214.6,41.61983224]
[1758732120324,134.6,214.61,214.6,44.97080194]
[1758732121533,134.6,214.61,214.6,41.61983224]
[1758732121738,134.6,214.61,214.6,44.97080194]
[1758732122532,134.6,214.61,214.6,43.76189947]
[1758732123233,134.6,214.61,214.6,41.61983224]
[1758732123427,134.6,214.61,214.6,43.76189947]
[1758732124028,134.6,214.61,214.6,7.52189947]
[1758732124244,134.6,214.61,214.6,43.76189947]
[1758732124962,134.6,214.67,214.64,26.0]
[1758732125161,134.6,214.67,214.66,2.14206723]
[1758732126249,134.6,214.67,214.66,6.80059699]
[1758732126557,134.82,214.67,214.6,0.68]
[1758732126760,134.6,214.67,214.65,2.14206723]
[1758732126960,134.6,214.67,214.65,39.04206723]
[1758732127964,134.6,214.67,214.65,38.36206723]
[1758732128445,134.6,214.67,214.66,2.14206723]
[1758732128642,134.6,214.67,214.66,2.82206723]
[1758732129744,134.6,214.67,214.66,7.48059699]
[1758732131766,134.6,214.67,214.66,21.076191]
[1758732133255,134.6,214.75,214.67,13.59559401]
[1758732133459,134.6,214.75,214.71,2.14206723]
[1758732133662,134.6,214.75,214.72,40.87708238]
[1758732134040,134.6,214.75,214.72,36.22]
[1758732134457,134.6,214.75,214.72,40.87713314]
[1758732135447,134.6,214.75,214.72,43.01920037]
[1758732135749,134.6,214.75,214.72,36.22]
[1758732136063,134.6,214.75,214.72,38.36206723]
[1758732136273,134.6,214.75,214.72,43.0191983]
[1758732136648,134.6,214.75,214.72,40.87713107]
[1758732136950,134.6,214.75,214.72,43.0191983]
[1758732138143,134.6,214.75,214.72,43.6991983]
[1758732138343,134.6,214.75,214.73,0.68]
[1758732138542,4.65592891,214.78,214.74,36.2]
[1758732138852,0.22,214.77,214.74,36.2]
[1758732139058,26.0,214.78,214.74,36.2]
[1758732139263,0.22,214.78,214.74,36.2]
[1758732139764,0.22,214.78,214.74,40.85679231]
[1758732139970,4.87595832,214.78,214.74,36.2]
[1758732141043,4.65573908,214.79,214.74,40.85677507]
[1758732141445,4.87573908,214.79,214.74,41.56677507]
[1758732142049,4.65549348,214.8,214.75,0.71]
[1758732142251,4.65549348,214.8,214.76,36.2]
[1758732142469,4.87549348,214.8,214.76,36.2]
[1758732142965,134.6,214.79,214.76,36.2]
[1758732143365,134.6,214.79,214.76,39.05206723]
[1758732143959,134.6,214.79,214.76,38.34206723]
[1758732144263,134.6,214.79,214.77,0.71]
[1758732144567,134.6,214.79,214.78,36.91]
[1758732145456,134.6,214.79,214.78,39.05206723]
[1758732145764,163.52514328,214.85,214.78,39.05206723]
[1758732145943,163.52514328,214.85,214.8,2.14206723]
[1758732146146,158.87072614,214.85,214.8,42.99746506]
[1758732146363,158.87072614,214.85,214.81,0.71]
[1758732146755,163.52520965,214.85,214.8,38.34206723]
[1758732146962,163.52520965,214.85,214.8,39.05206723]
[1758732147662,163.52520965,214.85,214.8,36.91]
[1758732147970,158.87072614,214.85,214.8,40.8554791]
[1758732148155,158.87072614,214.85,214.81,0.71]
[1758732148669,158.87072614,214.85,214.81,2.85206723]
[1758732149356,163.52516065,214.85,214.81,2.85206723]
[1758732149563,24.49072614,214.85,214.8,36.2]
[1758732149751,24.49072614,214.85,214.8,39.05206723]
[1758732149948,0.1,214.86,214.81,0.71]
[1758732150155,0.1,214.86,214.8,38.34206723]
[1758732150156,0.22,214.85,214.8,36.2]